[Event "Snabbschacks-KM 2025"]
[Site "Linköping, Sweden"]
[Date "2025.05.20"]
[Round "7.7"]
[White "Leijon, Noah"]
[Black "Qwarfort, Fredrik"]
[Result "0-1"]
[TimeControl "15 min + 5 sek"]
[WhiteElo "1621"]
[BlackElo "1827"]

1. e4 {[%clk 00:15:08]} {[%emt 00:00:01]} c5 {[%clk 00:15:05]} {[%emt
00:00:06]} 2. Nf3 {[%clk 00:15:11]} {[%emt 00:00:02]} Nc6 {[%clk 00:15:09]}
{[%emt 00:00:01]} 3. d4 {[%clk 00:15:15]} cxd4 {[%clk 00:15:12]} {[%emt
00:00:02]} 4. Nxd4 {[%clk 00:15:18]} {[%emt 00:00:01]} Nf6 {[%clk 00:15:13]}
{[%emt 00:00:04]} 5. Nc3 {[%clk 00:15:22]} {[%emt 00:00:01]} g6 {[%clk
00:15:09]} {[%emt 00:00:08]} 6. Bc4 {[%clk 00:15:21]} {[%emt 00:00:06]} Bg7
{[%clk 00:15:02]} {[%emt 00:00:12]} 7. Be3 {[%clk 00:15:10]} {[%emt 00:00:16]}
O-O {[%clk 00:15:01]} {[%emt 00:00:07]} 8. Qd2 {[%clk 00:15:13]} {[%emt
00:00:02]} a6 {[%clk 00:14:56]} {[%emt 00:00:10]} 9. O-O-O {[%clk 00:15:03]}
{[%emt 00:00:15]} Nxd4 {[%clk 00:14:30]} {[%emt 00:00:31]} 10. Bxd4 {[%clk
00:14:40]} {[%emt 00:00:27]} b5 {[%clk 00:14:30]} {[%emt 00:00:06]} 11. Bd5
{[%clk 00:13:37]} {[%emt 00:01:07]} Nxd5 {[%clk 00:14:26]} {[%emt 00:00:09]} 12.
Nxd5 {[%clk 00:13:40]} {[%emt 00:00:02]} d6 {[%clk 00:12:33]} {[%emt 00:01:58]}
13. Bxg7 {[%clk 00:13:10]} {[%emt 00:00:35]} Kxg7 {[%clk 00:12:36]} {[%emt
00:00:02]} 14. h4 {[%clk 00:13:08]} {[%emt 00:00:07]} h5 {[%clk 00:12:18]}
{[%emt 00:00:23]} 15. f3 {[%clk 00:12:26]} {[%emt 00:00:47]} Rh8 {[%clk
00:10:31]} {[%emt 00:01:52]} 16. Rdg1 {[%clk 00:11:23]} {[%emt 00:01:08]} Bb7
{[%clk 00:08:59]} {[%emt 00:01:38]} 17. g4 {[%clk 00:10:09]} {[%emt 00:01:19]}
Bxd5 {[%clk 00:08:38]} {[%emt 00:00:25]} 18. Qxd5 {[%clk 00:09:51]} {[%emt
00:00:23]} hxg4 {[%clk 00:07:23]} {[%emt 00:01:20]} 19. Rxg4 {[%clk 00:08:48]}
{[%emt 00:01:09]} Rc8 {[%clk 00:07:12]} {[%emt 00:00:16]} 20. h5 {[%clk
00:08:11]} {[%emt 00:00:42]} Rc5 {[%clk 00:07:06]} {[%emt 00:00:11]} 21. Qd4+
{[%clk 00:06:48]} {[%emt 00:01:28]} e5 {[%clk 00:06:45]} {[%emt 00:00:26]} 22.
Qd2 {[%clk 00:06:49]} {[%emt 00:00:04]} Qf6 {[%clk 00:06:32]} {[%emt 00:00:18]}
23. Qd1 {[%clk 00:05:40]} {[%emt 00:01:14]} Rh6 {[%clk 00:04:06]} {[%emt
00:02:31]} 24. hxg6 {[%clk 00:04:51]} {[%emt 00:00:54]} Rxg6 {[%clk 00:04:10]}
{[%emt 00:00:01]} 25. Rhg1 {[%clk 00:04:17]} {[%emt 00:00:39]} Rc8 {[%clk
00:04:09]} {[%emt 00:00:06]} 26. Qd5 {[%clk 00:03:55]} {[%emt 00:00:27]} Qe7
{[%clk 00:02:34]} {[%emt 00:01:40]} 27. Rxg6+ {[%clk 00:02:29]} {[%emt
00:01:31]} fxg6 {[%clk 00:02:38]} {[%emt 00:00:01]} 28. Rd1 {[%clk 00:02:15]}
{[%emt 00:00:19]} Rd8 {[%clk 00:02:36]} {[%emt 00:00:07]} 29. Qc6 {[%clk
00:02:08]} {[%emt 00:00:13]} Rf8 {[%clk 00:01:37]} {[%emt 00:01:03]} 30. Rxd6
{[%clk 00:01:15]} {[%emt 00:00:58]} Qg5+ {[%clk 00:01:41]} 31. Rd2 {[%clk
00:01:19]} {[%emt 00:00:02]} Rxf3 {[%clk 00:01:02]} {[%emt 00:00:45]} 32. Qc7+
{[%clk 00:01:02]} {[%emt 00:00:22]} Kh6 {[%clk 00:01:01]} {[%emt 00:00:05]} 33.
c3 {[%clk 00:00:37]} {[%emt 00:00:30]} Qf4 {[%clk 00:00:48]} {[%emt 00:00:18]}
34. Qd8 {[%clk 00:00:27]} {[%emt 00:00:15]} Rf1+ {[%clk 00:00:41]} {[%emt
00:00:12]} 35. Kc2 {[%clk 00:00:29]} {[%emt 00:00:03]} Qxe4+ {[%clk 00:00:45]}
{[%emt 00:00:01]} 36. Qd3 {[%clk 00:00:17]} {[%emt 00:00:17]} Qxd3+ {[%clk
00:00:19]} {[%emt 00:00:31]} 37. Rxd3 {[%clk 00:00:19]} {[%emt 00:00:04]} Rf6
{[%clk 00:00:16]} {[%emt 00:00:08]} 38. Re3 {[%clk 00:00:12]} {[%emt 00:00:12]}
Re6 {[%clk 00:00:20]} {[%emt 00:00:02]} 39. Kd3 {[%clk 00:00:14]} {[%emt
00:00:02]} g5 {[%clk 00:00:23]} {[%emt 00:00:01]} 40. c4 {[%clk 00:00:17]}
{[%emt 00:00:03]} bxc4+ {[%clk 00:00:26]} {[%emt 00:00:02]} 41. Kxc4 {[%clk
00:00:20]} {[%emt 00:00:02]} g4 {[%clk 00:00:30]} {[%emt 00:00:01]} 42. Kd5
{[%clk 00:00:24]} {[%emt 00:00:02]} Re8 {[%clk 00:00:27]} {[%emt 00:00:08]} 43.
b4 {[%clk 00:00:19]} {[%emt 00:00:09]} Kg5 {[%clk 00:00:30]} {[%emt 00:00:02]}
44. a4 {[%clk 00:00:18]} {[%emt 00:00:06]} Kf4 {[%clk 00:00:34]} 45. Re4+
{[%clk 00:00:14]} {[%emt 00:00:09]} Kf3 {[%clk 00:00:35]} {[%emt 00:00:04]} 46.
b5 {[%clk 00:00:11]} {[%emt 00:00:08]} axb5 {[%clk 00:00:36]} {[%emt 00:00:03]}
47. axb5 {[%clk 00:00:14]} {[%emt 00:00:02]} Rd8+ {[%clk 00:00:32]} {[%emt
00:00:09]} 48. Kxe5 {[%clk 00:00:15]} {[%emt 00:00:03]} Re8+ {[%clk 00:00:37]}
49. Kd6 {[%clk 00:00:19]} {[%emt 00:00:02]} Rxe4 {[%clk 00:00:41]} {[%emt
00:00:01]} 50. b6 {[%clk 00:00:24]} Rb4 {[%clk 00:00:45]} {[%emt 00:00:02]} 51.
Kc7 {[%clk 00:00:28]} {[%emt 00:00:01]} g3 {[%clk 00:00:48]} 52. b7 {[%clk
00:00:32]} g2 {[%clk 00:00:52]} {[%emt 00:00:02]} 53. b8=Q {[%clk 00:00:35]}
{[%emt 00:00:02]} Rxb8 {[%clk 00:00:56]} {[%emt 00:00:01]} 0-1

[Event "Snabbschacks-KM 2025"]
[Site "Linköping, Sweden"]
[Date "2025.05.20"]
[Round "7.8"]
[White "Wallenberg, Per"]
[Black "Martinelle, Christoffer"]
[Result "0-1"]
[TimeControl "15 min + 5 sek"]
[WhiteElo "1604"]
[BlackElo "1806"]

1. d4 {[%clk 00:15:07]} {[%emt 00:00:03]} e6 {[%clk 00:15:06]} {[%emt
00:00:05]} 2. c4 {[%clk 00:15:05]} {[%emt 00:00:06]} f5 {[%clk 00:15:06]}
{[%emt 00:00:05]} 3. Nf3 {[%clk 00:15:05]} {[%emt 00:00:04]} Nf6 {[%clk
00:15:09]} {[%emt 00:00:03]} 4. Nc3 {[%clk 00:15:05]} {[%emt 00:00:05]} c6
{[%clk 00:15:00]} {[%emt 00:00:14]} 5. Bg5 {[%clk 00:15:03]} {[%emt 00:00:06]}
d5 {[%clk 00:15:00]} {[%emt 00:00:06]} 6. e3 {[%clk 00:14:45]} {[%emt
00:00:22]} Be7 {[%clk 00:14:32]} {[%emt 00:00:46]} 7. Be2 {[%clk 00:14:10]}
{[%emt 00:00:28]} Nbd7 {[%clk 00:14:18]} {[%emt 00:00:19]} 8. cxd5 {[%clk
00:13:38]} {[%emt 00:00:36]} exd5 {[%clk 00:14:21]} {[%emt 00:00:03]} 9. h3
{[%clk 00:13:09]} {[%emt 00:00:33]} h6 {[%clk 00:14:07]} {[%emt 00:00:20]} 10.
Bf4 {[%clk 00:12:23]} {[%emt 00:00:50]} O-O {[%clk 00:13:34]} {[%emt 00:00:38]}
11. O-O {[%clk 00:12:20]} {[%emt 00:00:09]} Ne4 {[%clk 00:13:27]} {[%emt
00:00:11]} 12. Ne5 {[%clk 00:11:42]} {[%emt 00:00:42]} Nxe5 {[%clk 00:13:10]}
{[%emt 00:00:23]} 13. Bxe5 {[%clk 00:11:34]} {[%emt 00:00:13]} Bd6 {[%clk
00:12:40]} {[%emt 00:00:35]} 14. Bxd6 {[%clk 00:10:45]} {[%emt 00:00:54]} Qxd6
{[%clk 00:12:40]} {[%emt 00:00:06]} 15. Nxe4 {[%clk 00:10:24]} {[%emt
00:00:26]} fxe4 {[%clk 00:12:43]} {[%emt 00:00:02]} 16. Bg4 {[%clk 00:10:15]}
{[%emt 00:00:12]} Qg6 {[%clk 00:11:42]} {[%emt 00:01:07]} 17. Bxc8 {[%clk
00:10:11]} {[%emt 00:00:10]} Raxc8 {[%clk 00:11:46]} {[%emt 00:00:01]} 18. Qg4
{[%clk 00:10:01]} {[%emt 00:00:14]} Qxg4 {[%clk 00:11:17]} {[%emt 00:00:34]} 19.
hxg4 {[%clk 00:10:04]} {[%emt 00:00:02]} Rf6 {[%clk 00:11:01]} {[%emt
00:00:21]} 20. Kh2 {[%clk 00:09:05]} {[%emt 00:01:03]} Rcf8 {[%clk 00:11:00]}
{[%emt 00:00:07]} 21. Kg3 {[%clk 00:08:40]} {[%emt 00:00:29]} Kh7 {[%clk
00:10:51]} {[%emt 00:00:14]} 22. f4 {[%clk 00:08:23]} {[%emt 00:00:21]} a5
{[%clk 00:08:43]} {[%emt 00:02:14]} 23. Rh1 {[%clk 00:08:17]} {[%emt 00:00:10]}
Rd6 {[%clk 00:08:10]} {[%emt 00:00:39]} 24. g5 {[%clk 00:07:49]} {[%emt
00:00:33]} Rg6 {[%clk 00:06:17]} {[%emt 00:01:58]} 25. Raf1 {[%clk 00:07:42]}
{[%emt 00:00:11]} Rc8 {[%clk 00:05:57]} {[%emt 00:00:26]} 26. Kg4 {[%clk
00:07:39]} {[%emt 00:00:07]} Rf8 {[%clk 00:05:50]} {[%emt 00:00:12]} 27. f5
{[%clk 00:07:35]} {[%emt 00:00:08]} Rxg5+ {[%clk 00:05:53]} {[%emt 00:00:04]}
28. Kh3 {[%clk 00:07:31]} {[%emt 00:00:07]} Rgxf5 {[%clk 00:05:54]} {[%emt
00:00:06]} 29. Rxf5 {[%clk 00:07:32]} {[%emt 00:00:03]} Rxf5 {[%clk 00:05:58]}
{[%emt 00:00:01]} 30. Rh2 {[%clk 00:07:21]} {[%emt 00:00:16]} Rf2 {[%clk
00:05:57]} {[%emt 00:00:06]} 31. g4 {[%clk 00:07:24]} {[%emt 00:00:02]} Rxh2+
{[%clk 00:05:37]} {[%emt 00:00:25]} 32. Kxh2 {[%clk 00:07:28]} {[%emt
00:00:01]} Kg6 {[%clk 00:05:35]} {[%emt 00:00:08]} 33. Kg3 {[%clk 00:07:31]}
{[%emt 00:00:01]} Kg5 {[%clk 00:05:36]} {[%emt 00:00:05]} 34. a3 {[%clk
00:07:01]} {[%emt 00:00:34]} a4 {[%clk 00:05:34]} {[%emt 00:00:07]} 0-1

[Event "Snabbschacks-KM 2025"]
[Site "Linköping, Sweden"]
[Date "2025.05.20"]
[Round "7.9"]
[White "Andersson, Albin"]
[Black "Larsson, Emma 2008"]
[Result "0-1"]
[TimeControl "15 min + 5 sek"]
[WhiteElo "1728"]
[BlackElo "1848"]

1. e4 {[%clk 00:15:07]} {[%emt 00:00:02]} d5 {[%clk 00:15:04]} {[%emt
00:00:08]} 2. exd5 {[%clk 00:15:09]} {[%emt 00:00:03]} Nf6 {[%clk 00:15:05]}
{[%emt 00:00:04]} 3. d4 {[%clk 00:15:07]} {[%emt 00:00:07]} Nxd5 {[%clk
00:15:06]} {[%emt 00:00:04]} 4. c4 {[%clk 00:15:07]} {[%emt 00:00:04]} Nb6
{[%clk 00:15:08]} {[%emt 00:00:03]} 5. Nf3 {[%clk 00:14:57]} {[%emt 00:00:14]}
c6 {[%clk 00:15:08]} {[%emt 00:00:05]} 6. Bf4 {[%clk 00:14:42]} {[%emt
00:00:20]} Bf5 {[%clk 00:15:03]} {[%emt 00:00:10]} 7. Nc3 {[%clk 00:14:40]}
{[%emt 00:00:07]} e6 {[%clk 00:15:03]} {[%emt 00:00:05]} 8. Be2 {[%clk
00:13:52]} {[%emt 00:01:04]} Be7 {[%clk 00:14:40]} {[%emt 00:00:17]} 9. Qd2
{[%clk 00:13:37]} {[%emt 00:00:21]} N8d7 {[%clk 00:14:25]} {[%emt 00:00:19]} 10.
h3 {[%clk 00:13:09]} {[%emt 00:00:33]} Bg6 {[%clk 00:12:27]} {[%emt 00:02:03]}
11. Bd3 {[%clk 00:12:14]} {[%emt 00:01:00]} Nf6 {[%clk 00:11:44]} {[%emt
00:00:48]} 12. Bxg6 {[%clk 00:11:20]} {[%emt 00:00:59]} hxg6 {[%clk 00:11:44]}
{[%emt 00:00:05]} 13. b3 {[%clk 00:10:14]} {[%emt 00:01:12]} Bb4 {[%clk
00:09:41]} {[%emt 00:02:08]} 14. a3 {[%clk 00:09:21]} {[%emt 00:00:58]} Ne4
{[%clk 00:09:17]} {[%emt 00:00:29]} 15. Nxe4 {[%clk 00:07:11]} {[%emt
00:02:15]} Bxd2+ {[%clk 00:09:16]} {[%emt 00:00:06]} 16. Bxd2 {[%clk 00:07:11]}
{[%emt 00:00:05]} Qc7 {[%clk 00:08:39]} {[%emt 00:00:42]} 17. O-O-O {[%clk
00:06:49]} {[%emt 00:00:27]} a5 {[%clk 00:08:20]} {[%emt 00:00:25]} 18. a4
{[%clk 00:06:21]} {[%emt 00:00:33]} Qe7 {[%clk 00:07:46]} {[%emt 00:00:39]} 19.
Kc2 {[%clk 00:05:36]} {[%emt 00:00:50]} Nd7 {[%clk 00:06:54]} {[%emt 00:00:56]}
20. Rhe1 {[%clk 00:05:01]} {[%emt 00:00:40]} O-O {[%clk 00:06:43]} {[%emt
00:00:16]} 21. h4 {[%clk 00:03:55]} {[%emt 00:01:12]} b5 {[%clk 00:06:38]}
{[%emt 00:00:10]} 22. axb5 {[%clk 00:03:38]} {[%emt 00:00:21]} cxb5 {[%clk
00:06:38]} {[%emt 00:00:06]} 23. c5 {[%clk 00:03:39]} {[%emt 00:00:04]} b4
{[%clk 00:06:02]} {[%emt 00:00:40]} 24. Bf4 {[%clk 00:03:27]} {[%emt 00:00:16]}
Rfc8 {[%clk 00:04:59]} {[%emt 00:01:09]} 25. Nd6 {[%clk 00:03:13]} {[%emt
00:00:19]} Rc6 {[%clk 00:04:42]} {[%emt 00:00:21]} 26. Kb2 {[%clk 00:02:32]}
{[%emt 00:00:47]} a4 {[%clk 00:04:35]} {[%emt 00:00:13]} 27. Ng5 {[%clk
00:01:51]} {[%emt 00:00:45]} axb3 {[%clk 00:02:24]} {[%emt 00:02:16]} 28. Ngxf7
{[%clk 00:01:14]} {[%emt 00:00:41]} Ra2+ {[%clk 00:02:14]} {[%emt 00:00:15]} 29.
Kxb3 {[%clk 00:01:00]} {[%emt 00:00:19]} Rca6 {[%clk 00:01:04]} {[%emt
00:01:15]} 30. Bc1 {[%clk 00:00:32]} {[%emt 00:00:33]} Nf6 {[%clk 00:00:49]}
{[%emt 00:00:20]} 31. Ne5 {[%clk 00:00:28]} {[%emt 00:00:09]} Rxf2 {[%clk
00:00:31]} {[%emt 00:00:24]} 32. Nxg6 {[%clk 00:00:28]} {[%emt 00:00:05]} Qa7
{[%clk 00:00:34]} {[%emt 00:00:02]} 33. Rd2 {[%clk 00:00:19]} {[%emt 00:00:14]}
Rxd2 {[%clk 00:00:35]} {[%emt 00:00:04]} 34. Bxd2 {[%clk 00:00:23]} Ra3+ {[%clk
00:00:40]} 35. Kc2 {[%clk 00:00:25]} {[%emt 00:00:03]} Ra2+ {[%clk 00:00:43]}
{[%emt 00:00:02]} 36. Kd1 {[%clk 00:00:20]} {[%emt 00:00:09]} Qa4+ {[%clk
00:00:39]} {[%emt 00:00:08]} 37. Ke2 {[%clk 00:00:24]} Qc2 {[%clk 00:00:39]}
{[%emt 00:00:05]} 38. Ne7+ {[%clk 00:00:24]} {[%emt 00:00:05]} Kh7 {[%clk
00:00:38]} {[%emt 00:00:06]} 39. Rd1 {[%clk 00:00:21]} {[%emt 00:00:08]} Nd5
{[%clk 00:00:42]} {[%emt 00:00:01]} 40. Nxd5 {[%clk 00:00:18]} {[%emt
00:00:09]} exd5 {[%emt 00:00:03]} 41. Nb5 {[%clk 00:00:18]} {[%emt 00:00:02]}
Qc4+ {[%clk 00:00:47]} {[%emt 00:00:04]} 42. Ke1 {[%clk 00:00:23]} {[%emt
00:00:01]} Qxb5 {[%clk 00:00:51]} {[%emt 00:00:01]} 43. Rc1 {[%clk 00:00:23]}
{[%emt 00:00:04]} Qd3 {[%clk 00:00:52]} {[%emt 00:00:04]} 44. Rd1 {[%clk
00:00:27]} {[%emt 00:00:01]} Qe4+ {[%clk 00:00:56]} 45. Kf2 {[%clk 00:00:30]}
{[%emt 00:00:02]} Qxd4+ {[%clk 00:00:57]} {[%emt 00:00:04]} 46. Kf3 {[%clk
00:00:34]} Qe4+ {[%clk 00:01:01]} {[%emt 00:00:01]} 47. Kg3 {[%clk 00:00:36]}
{[%emt 00:00:02]} Ra3+ {[%clk 00:01:05]} {[%emt 00:00:02]} 48. Kf2 {[%clk
00:00:38]} {[%emt 00:00:02]} Qxh4+ {[%clk 00:01:07]} {[%emt 00:00:03]} 49. Ke2
{[%clk 00:00:40]} {[%emt 00:00:03]} Qg4+ {[%clk 00:01:05]} {[%emt 00:00:07]} 50.
Kf2 {[%clk 00:00:42]} {[%emt 00:00:03]} Qxd1 {[%clk 00:01:09]} {[%emt
00:00:02]} 0-1

[Event "Snabbschacks-KM 2025"]
[Site "Linköping, Sweden"]
[Date "2025.05.20"]
[Round "7.10"]
[White "Jakobsson, Leif"]
[Black "Skytt, Klas"]
[Result "1-0"]
[TimeControl "15 min + 5 sek"]
[WhiteElo "1702"]
[BlackElo "1705"]

1. e4 {[%clk 00:15:02]} {[%emt 00:00:06]} c5 {[%clk 00:14:57]} {[%emt
00:00:14]} 2. Nc3 {[%clk 00:15:03]} {[%emt 00:00:04]} Nc6 {[%clk 00:14:56]}
{[%emt 00:00:06]} 3. Bc4 {[%clk 00:15:03]} {[%emt 00:00:05]} d6 {[%clk
00:14:16]} {[%emt 00:00:44]} 4. d3 {[%clk 00:14:58]} {[%emt 00:00:10]} e6
{[%clk 00:14:07]} {[%emt 00:00:14]} 5. f4 {[%clk 00:14:32]} {[%emt 00:00:32]}
g6 {[%clk 00:13:42]} {[%emt 00:00:38]} 6. Nf3 {[%clk 00:14:11]} {[%emt
00:00:17]} Bg7 {[%clk 00:13:39]} {[%emt 00:00:08]} 7. O-O {[%clk 00:13:51]}
{[%emt 00:00:25]} Nge7 {[%clk 00:13:21]} {[%emt 00:00:23]} 8. Qe1 {[%clk
00:13:12]} {[%emt 00:00:43]} O-O {[%clk 00:13:06]} {[%emt 00:00:21]} 9. Nh4
{[%clk 00:11:29]} {[%emt 00:01:48]} Nd4 {[%clk 00:12:06]} {[%emt 00:01:06]} 10.
Qf2 {[%clk 00:11:02]} {[%emt 00:00:30]} Nec6 {[%clk 00:11:48]} {[%emt
00:00:23]} 11. a3 {[%clk 00:10:33]} {[%emt 00:00:35]} Nxc2 {[%clk 00:11:22]}
{[%emt 00:00:31]} 12. Qxc2 {[%clk 00:10:14]} {[%emt 00:00:24]} Qxh4 {[%clk
00:11:20]} {[%emt 00:00:07]} 13. g3 {[%clk 00:09:06]} {[%emt 00:01:13]} Qh3
{[%clk 00:10:38]} {[%emt 00:00:47]} 14. Nb5 {[%clk 00:08:41]} {[%emt 00:00:30]}
Bd4+ {[%clk 00:10:12]} {[%emt 00:00:32]} 15. Nxd4 {[%clk 00:08:21]} {[%emt
00:00:25]} Nxd4 {[%clk 00:10:13]} {[%emt 00:00:04]} 16. Qg2 {[%clk 00:07:59]}
{[%emt 00:00:26]} Qxg2+ {[%clk 00:09:49]} {[%emt 00:00:29]} 17. Kxg2 {[%clk
00:08:02]} {[%emt 00:00:03]} a6 {[%clk 00:09:11]} {[%emt 00:00:44]} 18. Rf2
{[%clk 00:07:46]} {[%emt 00:00:19]} b5 {[%clk 00:09:09]} {[%emt 00:00:08]} 19.
Ba2 {[%clk 00:07:48]} {[%emt 00:00:03]} Bb7 {[%clk 00:09:04]} {[%emt 00:00:10]}
20. Be3 {[%clk 00:07:42]} {[%emt 00:00:11]} Nf5 {[%clk 00:08:07]} {[%emt
00:01:03]} 21. Bd2 {[%clk 00:07:22]} {[%emt 00:00:24]} Ne7 {[%clk 00:07:45]}
{[%emt 00:00:27]} 22. Rc1 {[%clk 00:06:57]} {[%emt 00:00:30]} Rac8 {[%clk
00:07:37]} {[%emt 00:00:12]} 23. g4 {[%clk 00:06:58]} {[%emt 00:00:04]} d5
{[%clk 00:07:10]} {[%emt 00:00:33]} 24. e5 {[%clk 00:06:33]} {[%emt 00:00:30]}
d4+ {[%clk 00:06:58]} {[%emt 00:00:17]} 25. Kg3 {[%clk 00:06:36]} {[%emt
00:00:02]} Bd5 {[%clk 00:06:49]} {[%emt 00:00:14]} 26. b3 {[%clk 00:06:13]}
{[%emt 00:00:28]} Rc6 {[%clk 00:05:46]} {[%emt 00:01:07]} 27. Ba5 {[%clk
00:05:27]} {[%emt 00:00:51]} Rfc8 {[%clk 00:05:45]} {[%emt 00:00:06]} 28. Rfc2
{[%clk 00:04:27]} {[%emt 00:01:04]} Kg7 {[%clk 00:05:23]} {[%emt 00:00:28]} 29.
h4 {[%clk 00:04:02]} {[%emt 00:00:30]} h6 {[%clk 00:04:59]} {[%emt 00:00:29]}
30. Bd2 {[%clk 00:03:55]} {[%emt 00:00:11]} R8c7 {[%clk 00:03:49]} {[%emt
00:01:16]} 31. b4 {[%clk 00:03:30]} {[%emt 00:00:30]} Bxa2 {[%clk 00:03:39]}
{[%emt 00:00:15]} 32. Rxa2 {[%clk 00:03:30]} {[%emt 00:00:05]} c4 {[%clk
00:03:36]} {[%emt 00:00:08]} 33. dxc4 {[%clk 00:03:20]} {[%emt 00:00:14]} Rxc4
{[%clk 00:03:38]} {[%emt 00:00:03]} 34. Rxc4 {[%clk 00:03:05]} {[%emt
00:00:21]} Rxc4 {[%clk 00:03:38]} {[%emt 00:00:04]} 35. Ra1 {[%clk 00:02:53]}
{[%emt 00:00:17]} Nd5 {[%clk 00:03:17]} {[%emt 00:00:26]} 36. Rc1 {[%clk
00:02:22]} {[%emt 00:00:36]} Nb6 {[%clk 00:02:57]} {[%emt 00:00:26]} 37. Kf3
{[%clk 00:02:14]} {[%emt 00:00:13]} Rxc1 {[%clk 00:01:57]} {[%emt 00:01:05]} 38.
Bxc1 {[%clk 00:02:17]} {[%emt 00:00:02]} Nc4 {[%clk 00:01:50]} {[%emt
00:00:12]} 39. Ke4 {[%clk 00:02:15]} {[%emt 00:00:07]} f5+ {[%clk 00:01:19]}
{[%emt 00:00:37]} 40. gxf5 {[%clk 00:02:16]} {[%emt 00:00:04]} gxf5+ {[%clk
00:01:16]} {[%emt 00:00:08]} 41. Kxd4 {[%clk 00:02:15]} {[%emt 00:00:06]} Kf7
{[%clk 00:00:11]} {[%emt 00:01:11]} 42. a4 {[%clk 00:02:19]} {[%emt 00:00:02]}
Ke7 {[%clk 00:00:07]} {[%emt 00:00:08]} 43. axb5 {[%clk 00:02:20]} {[%emt
00:00:03]} axb5 {[%clk 00:00:11]} {[%emt 00:00:02]} 44. Kc5 {[%clk 00:02:22]}
{[%emt 00:00:03]} Nxe5 {[%clk 00:00:00]} {[%emt 00:00:13]} 45. Kd5 {[%clk
00:15:05]} {[%emt 00:00:29]} 1-0